bitfinex/quotes_ETHUSD_20250725
["timestamp","ask_amount","ask_price","bid_price","bid_amount"]
[1753445466718,2.67873884,3733.1,3732.9,0.1336]
[1753445466899,0.4626,3733.2,3732.9,0.1336]
[1753445466900,3.14128333,3733.2,3732.9,0.1336]
[1753445467206,3.14128333,3733.2,3732.5,4.311]
[1753445467207,2.6790259,3732.7,3732.5,4.311]
[1753445467406,0.4626,3732.7,3732.3,4.312]
[1753445467611,2.67930617,3732.4,3732.3,4.312]
[1753445467774,3.26645785,3732.6,3732.1,0.1336]
[1753445467973,3.14184384,3732.4,3732.1,0.1336]
[1753445468179,0.4626,3732.4,3732.0,0.001]
[1753445468380,2.67941814,3732.2,3732.0,0.001]
[1753445468611,0.4626,3732.4,3732.0,0.001]
[1753445469276,3.14185063,3732.4,3732.0,0.001]
[1753445469473,2.6794566,3732.1,3732.0,0.001]
[1753445469680,0.55,3732.5,3732.0,0.001]
[1753445470213,2.67932475,3732.3,3732.0,0.001]
[1753445470434,4.311,3733.0,3732.0,0.001]
[1753445470716,0.1336,3732.4,3732.0,0.001]
[1753445471415,0.55,3732.7,3732.1,3.60243046]
[1753445471739,0.55,3732.9,3732.4,2.67923808]
[1753445471944,0.1336,3732.8,3732.4,2.67918614]
[1753445472457,1.1416,3733.2,3732.3,4.306]
[1753445472601,0.1336,3733.2,3732.8,2.67894864]
[1753445472797,0.1336,3733.2,3732.7,0.1336]
[1753445473196,0.1336,3733.2,3732.7,2.812615]
[1753445473533,0.1336,3733.2,3732.8,0.4807]
[1753445473738,2.67889441,3732.9,3732.7,0.1336]
[1753445474046,3.27489721,3733.2,3732.7,3.73557193]
[1753445474047,0.1336,3733.2,3732.7,3.73557193]
[1753445474338,0.1336,3733.2,3732.7,1.0566]
[1753445474953,0.1336,3733.2,3732.8,3.15961922]
[1753445475099,0.1336,3733.2,3732.9,4.7443]
[1753445475301,0.1336,3733.4,3733.0,0.4807]
[1753445475537,0.1336,3733.4,3732.9,4.4356]
[1753445475707,0.1336,3733.4,3732.9,4.4326]
[1753445475911,1.09792434,3733.5,3732.9,7.42111887]
[1753445476233,1.09792434,3733.5,3733.2,2.67861576]
[1753445476431,1.09792434,3733.5,3733.1,0.1336]
[1753445476622,2.67865173,3733.3,3733.1,0.1336]
[1753445477136,2.6785455,3733.4,3733.1,4.4316]
[1753445477319,3.77639232,3733.5,3733.1,4.4316]
[1753445477506,2.67853085,3733.4,3733.1,4.298]
[1753445477832,3.7763886,3733.5,3733.1,4.298]
[1753445478033,3.7763886,3733.5,3733.1,4.295]
[1753445478034,2.67866709,3733.2,3733.1,4.295]
[1753445478229,0.55,3733.2,3733.1,4.295]
[1753445478533,3.22866709,3733.2,3733.1,4.295]
[1753445478736,0.55,3733.2,3733.1,4.295]
[1753445479434,3.22866709,3733.2,3733.1,4.295]
[1753445479938,0.55,3733.2,3733.1,4.295]
[1753445480139,0.55,3733.2,3732.5,0.4423]
[1753445480305,2.67889852,3732.9,3732.6,4.295]
[1753445480506,2.67882862,3733.0,3732.7,4.295]
[1753445480798,2.67882862,3733.0,3732.3,3.16000277]
[1753445481003,0.55,3733.2,3732.4,4.295]
[1753445481326,2.67861746,3733.3,3732.7,2.67896381]
[1753445481528,2.67861746,3733.3,3732.6,2.67908689]
[1753445481838,2.67862424,3733.3,3732.7,4.293]
[1753445482135,3.14126709,3733.2,3732.4,2.67923635]
[1753445482339,3.14126709,3733.2,3732.0,0.924]
[1753445482340,2.67883427,3733.0,3732.7,4.293]
[1753445483415,3.14126709,3733.2,3732.7,4.293]
[1753445483416,2.67880928,3733.1,3732.7,4.293]
[1753445483616,0.55,3732.8,3732.4,4.29]
[1753445483828,0.55,3732.9,3732.0,0.4433]
[1753445484035,0.55,3732.9,3732.0,0.001]
[1753445484036,1.1046,3732.6,3732.0,0.001]
[1753445484343,3.2294566,3732.1,3732.0,0.001]
[1753445484815,0.55,3732.2,3732.0,0.001]
[1753445485014,3.2294566,3732.1,3732.0,0.001]
[1753445485240,3.6920566,3732.1,3732.0,0.001]
[1753445485806,7.8105566,3732.1,3732.0,0.001]
[1753445486009,12.1035566,3732.1,3732.0,0.001]
[1753445486225,3.22995926,3731.4,3731.3,0.001]
[1753445486523,4.34845926,3731.4,3731.3,0.001]
[1753445486732,5.26475926,3731.4,3731.3,0.001]
[1753445487250,7.81105926,3731.4,3731.3,0.001]
[1753445487436,8.26475926,3731.4,3731.3,0.001]
[1753445487632,8.39835926,3731.4,3731.3,0.001]
[1753445488347,7.94465926,3731.4,3731.3,0.001]
[1753445488642,8.39835926,3731.4,3731.3,0.001]
[1753445489750,7.94465926,3731.4,3731.3,0.001]
[1753445489965,11.77105926,3731.4,3731.3,0.001]
[1753445490919,12.23365926,3731.4,3731.3,0.001]
[1753445491653,3.1336,3731.4,3731.3,0.001]
[1753445492560,0.1336,3731.4,3731.3,0.001]
[1753445492733,1.629,3732.3,3731.3,0.001]
[1753445492734,1.1753,3732.3,3731.4,2.67989466]
[1753445493059,0.1336,3731.8,3731.5,0.923]
[1753445493258,0.1336,3731.8,3731.5,2.67985941]
[1753445493415,0.1336,3731.8,3731.6,0.923]
[1753445493619,0.1336,3731.8,3731.6,2.1092]
[1753445493854,1.08343267,3732.6,3731.7,0.923]
[1753445494154,2.81286343,3732.4,3731.8,0.923]
[1753445494355,2.81286343,3732.4,3731.7,7.09733197]
[1753445494356,0.1336,3732.4,3731.7,0.1336]
[1753445494564,0.1336,3732.4,3731.3,0.4433]
[1753445494565,2.67980187,3731.7,3731.3,0.001]
[1753445494982,0.55,3731.7,3731.3,0.001]
[1753445495263,2.67995926,3731.4,3731.3,0.001]
[1753445497146,3.22995926,3731.4,3731.3,0.001]
[1753445497349,5.32275926,3731.4,3731.3,0.001]
[1753445497656,4.87915926,3731.4,3731.3,0.001]
[1753445497860,5.32275926,3731.4,3731.3,0.001]
[1753445498365,8.32275926,3731.4,3731.3,0.001]
[1753445498733,12.60275926,3731.4,3731.3,0.001]
[1753445499534,12.15915926,3731.4,3731.3,0.001]
[1753445499739,11.70765926,3731.4,3731.3,0.001]
[1753445500035,11.70565926,3731.4,3731.3,0.001]
[1753445500681,12.60075926,3731.4,3731.3,0.001]
[1753445501546,12.15715926,3731.4,3731.3,0.001]
[1753445501733,11.70565926,3731.4,3731.3,0.001]
[1753445502136,12.15715926,3731.4,3731.3,0.001]
[1753445503838,12.60075926,3731.4,3731.3,0.001]
[1753445504280,19.64075926,3731.4,3731.3,1e-08]
[1753445505189,19.64075926,3731.4,3730.5,0.001]
[1753445505190,3.23053396,3730.6,3730.5,1e-08]
[1753445505352,11.61073396,3730.6,3730.5,1e-08]
[1753445505671,7.47413396,3730.6,3730.5,1e-08]
[1753445505984,11.74613396,3730.6,3730.5,1e-08]
[1753445506135,4.4064,3730.6,3730.5,1e-08]
[1753445506339,2.81493396,3730.6,3730.5,0.91490001]
[1753445506577,7.63693396,3730.6,3730.5,1e-08]
[1753445506780,12.72513396,3730.6,3730.5,1e-08]
[1753445507762,12.28153396,3730.6,3730.5,1e-08]
[1753445508641,1.3275,3730.6,3730.5,1e-08]
[1753445508893,4.4084,3730.6,3730.5,0.91490001]
[1753445509339,0.1344,3730.6,3730.5,0.91490001]
[1753445509680,0.1344,3730.6,3730.5,0.45620001]
[1753445509681,2.81493396,3730.6,3730.5,0.45620001]
[1753445509984,6.81643396,3730.6,3730.5,1e-08]
[1753445511177,6.36493396,3730.6,3730.5,1e-08]
[1753445511678,10.08993396,3730.6,3730.5,0.45620001]
[1753445511880,5.81493396,3730.6,3730.5,0.45620001]
[1753445512173,10.08793396,3730.6,3730.5,1e-08]
[1753445512779,5.81493396,3730.6,3730.5,1e-08]
[1753445512938,0.1344,3730.6,3730.5,0.91490001]
[1753445513270,0.1344,3730.7,3730.5,0.91490001]
[1753445513471,0.1344,3730.7,3730.6,0.9149]
[1753445513677,3.1344,3730.7,3730.6,0.9149]
[1753445513975,2.67989989,3731.5,3730.6,0.9149]
[1753445513976,1.7279,3731.4,3730.6,0.9149]
[1753445514179,1.7279,3731.4,3730.5,1.12420001]
[1753445514180,0.1344,3730.8,3730.5,1.12420001]
[1753445514380,0.1344,3730.8,3730.5,1e-08]
[1753445514381,3.23053396,3730.6,3730.5,1e-08]
[1753445514544,3.36493396,3730.6,3730.5,1e-08]
[1753445514744,7.55203396,3730.6,3730.5,1e-08]
[1753445516671,11.82503396,3730.6,3730.5,1e-08]
[1753445516881,12.72013396,3730.6,3730.5,1e-08]
[1753445517649,12.32163396,3730.6,3730.5,1e-08]
[1753445518401,12.32163396,3730.6,3729.7,1e-08]
[1753445518402,4.0197089,3729.8,3729.7,1e-08]
[1753445518549,11.2877089,3729.8,3729.7,1e-08]
[1753445518751,12.1828089,3729.8,3729.7,1e-08]
[1753445519058,12.1828089,3729.8,3728.6,0.001]
[1753445519059,1.303,3729.0,3728.6,0.001]
[1753445519269,3.36629985,3728.7,3728.6,0.001]
[1753445519465,7.63529985,3728.7,3728.6,0.001]
[1753445519679,11.08679985,3728.7,3728.6,0.001]
[1753445519858,10.63529985,3728.7,3728.6,0.001]
[1753445520188,3.1344,3728.7,3728.6,0.001]
[1753445520390,3.1344,3728.7,3728.6,0.9159]
[1753445520690,0.1344,3728.7,3728.6,0.9159]
[1753445520877,2.68170155,3729.0,3728.6,0.9159]
[1753445521079,0.1344,3728.9,3728.8,2.68182793]
[1753445521397,0.4515,3730.0,3728.8,2.68182793]
[1753445521398,0.8276,3729.6,3728.8,0.4587]
[1753445521570,0.8276,3729.6,3728.0,2.68235898]
[1753445521572,3.23355517,3726.4,3725.0,8.44626642]
[1753445521895,3.23355517,3726.4,3725.0,0.1344]
[1753445521896,3.16122564,3726.4,3725.0,0.1344]
[1753445522193,3.16122564,3726.4,3723.9,0.001]
[1753445522194,2.68429891,3725.4,3724.7,0.4562]
[1753445522395,0.55,3725.8,3724.7,0.4562]
[1753445522609,3.0,3726.2,3724.7,0.4562]
[1753445522765,0.55,3726.1,3724.8,0.7644]
[1753445523089,1.24401293,3726.1,3724.9,0.4562]
[1753445523313,2.68442132,3725.2,3724.9,0.4562]
[1753445523516,0.02682564,3725.1,3725.0,0.4562]
[1753445523824,2.68477998,3724.7,3724.6,0.001]
[1753445523971,0.55,3725.2,3724.6,0.001]
[1753445524161,1.21645715,3724.7,3724.6,0.9159]
[1753445524966,1.21645715,3724.7,3724.6,8.10075206]
[1753445525165,0.964686,3724.7,3724.6,11.10075206]
[1753445525457,1.88422689,3726.4,3724.9,2.68461281]
[1753445525694,1.1180791,3726.3,3725.0,0.9149]
[1753445525860,0.5680791,3726.2,3725.1,10.03939169]
[1753445526211,0.5680791,3726.1,3725.3,0.7788]
[1753445526360,2.68398698,3725.9,3725.3,0.7788]
[1753445526561,0.5680791,3725.8,3725.4,4.497]
[1753445526780,0.5679257,3725.7,3725.4,4.497]
[1753445526975,0.02682564,3725.6,3725.5,4.9893]
[1753445527193,0.56762068,3725.6,3725.5,4.9893]
[1753445527710,2.68427551,3725.4,3723.9,1e-08]
[1753445528064,0.2386,3722.7,3721.2,0.8089]
[1753445528204,2.68651102,3722.3,3721.2,0.8089]
[1753445528506,2.68694373,3721.8,3721.2,0.8089]
[1753445528703,0.02682564,3721.7,3721.2,0.8089]
[1753445528912,0.02682564,3722.1,3721.3,5.1033]
[1753445529211,2.68689043,3721.8,3721.3,5.73967]
[1753445529366,2.68700216,3721.7,3721.3,5.24737]
[1753445529573,0.55,3722.3,3721.3,0.63637]
[1753445529782,1.08159449,3722.4,3721.4,4.607]
[1753445529990,2.68682061,3721.9,3721.4,4.607]
[1753445530268,0.55,3722.3,3721.4,4.607]
[1753445530269,0.55,3722.3,3721.5,0.4923]
[1753445530470,1.08159449,3722.4,3721.5,0.4923]
[1753445530670,1.08159449,3722.4,3721.6,0.4515]
[1753445530869,1.08159449,3722.4,3721.7,1.07693653]
[1753445531197,1.08159449,3722.4,3721.8,0.9438]
[1753445531395,1.08159449,3722.4,3721.9,4.602]
[1753445531596,0.02682564,3722.3,3722.0,4.602]
[1753445531840,2.68667869,3722.1,3721.7,0.55776709]
[1753445532110,0.02682564,3722.3,3721.4,6.442]
[1753445532111,2.82115622,3722.0,3721.8,4.602]
[1753445532274,2.82119975,3721.9,3721.8,4.602]
[1753445532474,2.6869026,3721.8,3721.7,4.601]
[1753445532816,2.6869026,3721.8,3721.4,6.442]
[1753445532969,0.1344,3721.9,3721.7,4.6]
[1753445533178,2.82122836,3721.9,3721.7,4.6]
[1753445533415,0.1344,3721.9,3721.8,0.4923]
[1753445533628,1.08159449,3722.4,3721.8,0.9438]
[1753445533924,1.08159449,3722.4,3721.9,0.9438]
[1753445534076,1.08159449,3722.4,3722.1,2.68664662]
[1753445534277,1.08159449,3722.4,3722.3,2.68651102]
[1753445534537,0.16899913,3722.4,3722.3,4.43507613]
[1753445534821,0.9154,3724.3,3722.3,4.43507613]
[1753445534822,0.1344,3723.3,3722.3,1.88296511]
[1753445535022,0.1344,3723.3,3723.1,2.68591944]
[1753445535225,2.68536298,3723.9,3722.8,2.8205134]
[1753445535226,0.1344,3723.4,3723.2,5.0883]
[1753445535618,0.1344,3723.4,3722.8,0.1344]
[1753445535945,0.4443,3724.1,3721.8,4.594]
[1753445535946,0.55,3722.8,3721.8,4.594]
[1753445536237,0.55,3722.8,3721.9,0.4923]
[1753445536238,2.68629452,3722.6,3721.9,0.4923]
[1753445536392,2.68615825,3722.8,3721.9,0.4923]
[1753445536594,2.68629452,3722.6,3721.9,0.4923]
[1753445536892,2.68649251,3722.4,3721.9,0.4923]
[1753445537114,2.68649251,3722.4,3722.0,4.598]
[1753445537333,2.68631255,3722.6,3722.1,0.4923]
[1753445537531,2.68631255,3722.6,3722.0,5.0495]
[1753445537754,2.68637489,3722.5,3722.0,5.0495]
[1753445537955,2.68637489,3722.5,3722.1,4.598]
[1753445538244,0.55,3723.2,3722.1,5.5418]
[1753445538537,3.0,3722.9,3722.1,5.5418]
[1753445538737,3.0,3722.9,3720.7,3.0]
[1753445538738,3.55,3722.4,3721.0,0.4923]
[1753445539035,0.55,3722.2,3721.1,4.596]
[1753445539203,3.25023842,3722.1,3722.0,0.001]
[1753445539403,2.6865832,3722.2,3722.0,0.001]
[1753445539619,2.68649872,3722.4,3722.0,0.4933]
[1753445539925,2.68651229,3722.3,3722.1,5.0863]
[1753445540128,0.9154,3723.1,3722.1,5.0863]
[1753445540316,2.68638277,3722.5,3722.2,0.4923]
[1753445540515,3.0,3722.9,3722.1,5.0455]
[1753445540697,3.0,3722.7,3722.3,0.4923]
[1753445540896,2.68642345,3722.5,3722.3,0.4923]
[1753445541121,5.6862826,3722.7,3722.3,0.4923]
[1753445541425,0.56449967,3722.6,3722.3,0.4923]
[1753445541603,2.68596946,3723.1,3722.0,0.001]
[1753445541604,0.02682564,3723.1,3722.4,4.587]
[1753445541804,3.44740181,3723.3,3722.4,4.587]
[1753445541805,0.56454664,3723.0,3722.4,4.587]
[1753445542027,0.56454664,3722.9,3722.4,4.587]
[1753445542228,3.25069905,3722.8,3722.5,0.4923]
[1753445542524,0.56454664,3722.7,3722.5,0.4923]
[1753445542826,0.4443,3724.0,3722.6,5.5288]
[1753445543175,0.56507361,3723.7,3722.8,0.783]
[1753445543324,2.68624163,3722.7,3722.3,0.783]
[1753445543653,3.27819872,3722.6,3722.4,4.585]
[1753445543856,2.71312511,3722.6,3722.4,4.585]
[1753445544367,2.68631104,3722.6,3722.4,4.585]
[1753445544563,0.7666,3723.2,3721.1,0.50883]
[1753445544564,0.55,3722.9,3721.1,0.50883]
[1753445544745,0.55,3722.9,3721.2,4.584]
[1753445544746,0.55,3722.4,3721.2,4.584]
[1753445544952,0.94222564,3722.3,3721.3,4.583]
[1753445545253,2.68684976,3721.9,3721.3,4.583]
[1753445545459,2.68692369,3721.8,3721.3,4.583]
[1753445545760,0.55,3722.7,3721.4,5.5228]
[1753445545958,3.0,3723.1,3721.4,5.5228]
[1753445545959,0.4443,3723.4,3721.5,0.97067088]
[1753445546159,0.1344,3722.8,3722.2,0.1344]
[1753445546321,0.1344,3722.9,3722.4,0.1344]
[1753445546527,0.1344,3722.9,3722.5,0.9438]
[1753445546758,0.24482828,3723.1,3722.6,0.9438]
[1753445546957,2.68515224,3724.2,3722.5,0.8343692]
[1753445546958,2.68499624,3724.4,3723.4,2.68566408]
[1753445547128,0.1344,3723.9,3723.5,4.578]
[1753445547330,2.81978178,3723.9,3723.6,4.578]
[1753445547559,0.1344,3723.9,3723.6,4.578]
[1753445547763,0.1344,3723.9,3723.6,7.26356016]
[1753445547938,0.9154,3724.7,3723.6,7.26356016]
[1753445547939,3.44830042,3725.1,3723.8,2.68542886]
[1753445548139,0.1344,3724.2,3723.8,2.68542886]
[1753445548341,0.1344,3724.2,3723.9,0.9438]
[1753445548552,2.68473716,3724.8,3723.9,0.9438]
[1753445548553,2.68473911,3724.8,3724.1,2.68521004]
[1753445548756,0.02682564,3725.4,3724.2,5.0643]
[1753445549064,0.1344,3725.2,3724.7,0.1344]
[1753445549242,2.23177251,3726.1,3724.8,0.9438]
[1753445549438,2.23177251,3726.1,3724.9,4.573]
[1753445549439,0.1344,3725.5,3724.9,4.573]
[1753445549756,0.1344,3725.5,3725.0,0.1344]
[1753445549959,2.68427758,3725.4,3725.0,0.6267]
[1753445550130,2.8186226,3725.5,3725.0,0.6267]
[1753445550462,2.68449169,3725.1,3725.0,0.1344]
[1753445550678,0.1344,3725.2,3725.0,4.569]
[1753445550882,2.68436693,3725.3,3725.0,5.0613]
[1753445551176,2.6847079,3724.8,3724.7,0.1344]
[1753445551342,2.6847079,3724.8,3724.7,4.567]
[1753445551741,2.68477085,3724.8,3724.7,4.566]
[1753445551945,0.1344,3724.9,3724.7,4.566]
[1753445552169,0.1344,3724.9,3724.8,4.565]
[1753445552381,0.1344,3724.9,3724.4,0.1344]
[1753445552674,0.1344,3724.9,3724.5,0.4923]
[1753445552874,0.4711,3726.2,3724.6,0.9438]
[1753445553058,0.1344,3725.5,3724.8,2.81909293]
[1753445553267,0.1344,3725.5,3725.0,0.1344]
[1753445553466,0.1344,3725.5,3725.1,5.0523]
[1753445553683,2.68392887,3725.9,3725.1,5.0523]
[1753445553684,0.4443,3726.4,3725.3,2.68429732]
[1753445553864,2.68405194,3725.8,3725.4,4.6934]
[1753445554063,0.02682564,3725.7,3725.5,4.559]
[1753445554860,2.68420346,3725.5,3725.4,0.1344]
[1753445555065,2.68420346,3725.5,3725.4,4.558]
[1753445555287,2.93090949,3725.5,3725.4,4.558]
[1753445555487,2.95773513,3725.5,3725.4,4.558]
[1753445555797,0.24670603,3725.5,3725.4,5.5018]
[1753445555994,0.24670603,3725.5,3725.4,5.6362]
[1753445555995,0.6413518,3725.5,3725.4,5.6362]
[1753445556195,0.6413518,3725.5,3725.4,8.96479551]
[1753445556196,0.39464949,3725.5,3725.4,8.96479551]
[1753445556560,0.24670603,3725.5,3725.4,8.96479551]
[1753445556766,0.24670603,3725.5,3725.4,8.32047551]
[1753445558492,0.24670603,3725.5,3725.4,11.32047551]
[1753445559896,0.24670603,3726.3,3725.9,2.68389494]
[1753445560221,0.24670603,3726.3,3725.6,2.6840717]
[1753445560222,0.24670603,3726.2,3726.0,5.0194]
[1753445560384,0.1344,3726.4,3726.1,4.536]
[1753445560588,2.93033515,3726.3,3726.2,4.535]
[1753445560807,0.24670423,3726.3,3726.2,4.535]
[1753445561114,0.24871359,3726.3,3726.2,4.535]
[1753445561704,0.24871359,3726.3,3726.2,7.69509921]
[1753445562016,0.24871359,3726.3,3726.2,9.09369921]
[1753445562218,0.002,3726.3,3726.2,9.09369921]
[1753445562722,0.002,3726.3,3726.2,10.91604758]
[1753445563621,0.002,3726.3,3726.2,13.91604758]
[1753445564122,0.002,3726.3,3726.2,9.38104758]
[1753445564329,0.002,3726.3,3726.2,7.55869921]
[1753445564485,0.002,3726.3,3726.2,0.8014]
[1753445564689,0.002,3726.3,3725.7,0.8242]
[1753445565033,2.68383227,3726.1,3725.8,4.522]
[1753445565321,0.02682564,3726.1,3725.8,4.522]
[1753445565520,0.24665681,3726.2,3726.1,2.68377123]
[1753445565685,0.24665681,3726.2,3726.1,7.68117123]
[1753445565890,0.81725888,3726.2,3726.1,7.68117123]
[1753445566092,0.002,3726.3,3726.1,4.9974]
[1753445566536,0.002,3726.3,3726.1,7.68116591]
[1753445566899,0.002,3726.3,3726.1,4.9974]
[1753445567097,0.002,3726.3,3726.2,4.52]
[1753445567397,0.24877167,3726.3,3726.2,4.52]
[1753445567711,0.24877167,3726.3,3726.2,4.515]
[1753445567922,0.24877167,3726.3,3725.7,2.68400878]
[1753445568096,2.93054221,3726.2,3725.8,4.512]
[1753445568300,2.68377054,3726.2,3725.8,4.512]
[1753445568629,2.68377054,3726.2,3725.6,2.68410657]
[1753445568830,0.70629731,3726.3,3725.4,6.445]
[1753445569136,2.68369921,3726.2,3725.5,7.1931503]
[1753445569299,3.36310321,3726.3,3725.5,4.509]
[1753445569496,2.68384458,3726.0,3725.5,4.509]
[1753445569700,2.68379193,3726.1,3725.5,4.509]
[1753445569926,2.68397267,3725.9,3725.3,3.0]
[1753445570129,0.31164919,3726.0,3725.4,4.51]
[1753445570334,2.68382709,3726.1,3725.4,7.1942324]
[1753445570528,2.93059032,3726.2,3725.5,2.68419659]
[1753445570703,2.68379134,3726.1,3725.5,2.68419659]
[1753445571230,2.68372446,3726.2,3725.4,4.51]
[1753445571432,2.68372446,3726.2,3725.5,2.68418234]
[1753445571632,3.36322069,3726.3,3725.6,2.6841219]
[1753445571844,3.36322069,3726.3,3726.0,2.68380005]
[1753445571845,0.002,3726.3,3726.0,2.68380005]
[1753445572016,0.002,3726.3,3726.1,4.502]
[1753445572806,0.002,3726.3,3726.2,4.501]
[1753445573007,0.002,3726.3,3726.1,2.68375853]
[1753445573254,0.002,3726.3,3726.2,4.497]
[1753445573766,0.002,3726.3,3726.2,7.18069921]
[1753445573924,0.8852,3726.3,3725.3,3.0]
[1753445574247,0.8852,3726.3,3725.4,4.495]
[1753445574432,0.8852,3726.3,3725.8,2.68393341]
[1753445574433,0.1344,3726.1,3725.8,2.68393341]
[1753445574633,0.4327,3726.3,3725.9,4.495]
[1753445574845,0.5671,3726.3,3725.9,4.495]
[1753445575162,0.5671,3726.3,3725.8,2.81834358]
[1753445575163,0.002,3726.3,3726.0,7.17879728]
[1753445575317,0.002,3726.3,3726.2,2.68369921]
[1753445575664,0.002,3726.3,3726.2,2.81809921]
[1753445575865,0.002,3726.3,3726.2,3.29449921]
[1753445576035,0.002,3726.3,3726.2,5.56974467]
[1753445576358,0.002,3726.3,3726.2,13.03190768]
[1753445576524,0.002,3726.3,3726.2,8.54290768]
[1753445576734,0.002,3726.3,3726.2,7.44929921]
[1753445576927,0.002,3726.3,3726.2,11.94029921]
[1753445577574,1e-08,3726.3,3726.2,11.94029921]
[1753445577768,1e-08,3726.7,3726.6,3.46441115]
[1753445578070,1e-08,3726.7,3726.6,17.94741115]
[1753445578277,0.002,3727.8,3727.7,3.4636193]
[1753445578439,0.002,3727.8,3727.7,10.97944549]
[1753445578643,0.002,3727.8,3727.7,11.8918193]
[1753445579964,0.49640426,3729.4,3728.6,0.7832]
[1753445580168,1.2834,3729.7,3729.1,2.68154705]
[1753445580340,0.8309,3729.7,3729.2,4.483]
[1753445580853,2.6813282,3729.5,3729.2,4.483]
[1753445581166,0.8309,3729.7,3729.2,4.483]
[1753445581366,3.56418059,3730.0,3729.3,2.68146697]
[1753445581543,0.7568,3730.2,3728.1,0.8074]
[1753445581544,0.67847577,3730.1,3728.1,0.8074]
[1753445581733,0.02682564,3730.0,3728.2,4.9684]
[1753445581933,3.55,3729.9,3728.6,2.68194375]
[1753445582130,2.68123652,3729.7,3728.9,2.68168841]
[1753445582471,2.68107439,3729.9,3729.0,4.491]
[1753445582630,0.4525,3729.8,3728.4,0.9392]
[1753445582828,0.45752564,3729.7,3728.4,0.4764]
[1753445583031,2.68160042,3729.2,3728.4,2.68206604]
[1753445583228,2.68186304,3728.8,3728.5,4.491]
[1753445583432,0.91002564,3728.7,3727.6,0.7662]
[1753445583631,0.91002564,3728.7,3727.7,4.491]
[1753445583632,0.8832,3728.6,3727.7,4.491]
[1753445583933,0.91002564,3728.5,3727.5,6.443]
[1753445584132,3.59217382,3728.4,3727.6,4.491]
[1753445584331,3.59217382,3728.4,3727.7,2.68260863]
[1753445584332,3.56538175,3728.4,3727.7,2.68260863]
[1753445584561,2.68218175,3728.4,3727.7,2.68260863]
[1753445584766,0.4525,3728.8,3727.7,0.50322619]
[1753445585066,0.4307,3728.9,3727.7,0.9392]
[1753445585271,2.68185249,3728.8,3728.0,2.68234615]
[1753445585469,0.4307,3728.9,3727.7,3.62181125]
[1753445585630,0.4525,3728.8,3727.8,4.488]
[1753445585830,0.4525,3729.3,3728.0,0.7932]
[1753445586032,2.68123658,3729.7,3728.9,2.68173263]
[1753445586226,0.1344,3729.5,3729.0,4.6224]
[1753445586431,0.1344,3729.5,3729.0,0.1344]
[1753445586432,0.97782564,3729.4,3729.0,0.1344]
[1753445586642,2.68154027,3729.2,3729.1,4.487]
[1753445586974,3.63254027,3729.2,3729.1,4.487]
[1753445587164,3.76694027,3729.2,3729.1,4.487]
[1753445587733,0.951,3729.7,3729.1,4.487]
[1753445588068,2.81584972,3729.4,3729.1,4.487]
[1753445588291,0.1344,3729.4,3729.1,4.487]
[1753445588492,2.81573924,3729.5,3729.1,4.487]
[1753445589063,2.70822211,3729.4,3729.1,4.487]
[1753445589391,2.68147077,3729.3,3729.1,4.487]
[1753445589906,3.168574,3729.4,3729.1,4.487]
[1753445590596,2.68147145,3729.3,3729.1,4.487]
[1753445590807,2.68154027,3729.2,3729.1,4.487]
[1753445591115,2.70836591,3729.2,3729.1,4.487]
[1753445591313,0.4603,3729.4,3729.1,4.487]
[1753445591614,0.1344,3729.5,3729.1,4.487]
[1753445591763,0.8127,3729.9,3729.1,4.487]
[1753445591965,0.1344,3729.7,3729.1,4.487]
[1753445592162,2.81560819,3729.7,3729.1,7.16859982]
[1753445592366,0.02682564,3729.6,3729.1,4.487]
[1753445592563,0.02682564,3729.6,3728.2,0.95]
[1753445592564,0.951,3729.5,3728.2,0.95]
[1753445592797,0.1344,3729.3,3728.7,0.1344]
[1753445592960,2.68139647,3729.4,3728.9,0.1344]
[1753445593161,2.68148109,3729.3,3728.9,0.1344]
[1753445593366,0.29794635,3729.4,3728.9,0.1344]
[1753445593817,2.68152133,3729.3,3728.9,0.1344]
[1753445593964,0.29794635,3729.4,3728.9,0.1344]
[1753445594303,2.68148518,3729.3,3728.9,0.1344]
[1753445595016,2.70838303,3729.2,3728.9,0.1344]
[1753445595803,2.68163822,3729.1,3728.9,0.1344]
[1753445596002,2.70855863,3729.0,3728.3,3.18176143]
[1753445596198,2.70855863,3729.0,3728.6,0.1344]
[1753445596401,2.68175623,3728.9,3728.6,0.1344]
[1753445596714,0.28826618,3729.2,3728.7,7.13889681]
[1753445596869,0.7898,3729.9,3728.9,0.7977]
[1753445596870,2.68105384,3729.9,3728.9,0.7977]
[1753445597204,0.1344,3729.7,3729.1,0.1344]
[1753445597375,2.68136784,3729.5,3729.2,4.459]
[1753445597580,0.02682564,3729.4,3729.3,4.458]
[1753445597767,0.951,3729.4,3729.3,4.457]
[1753445597964,3.76679647,3729.4,3729.3,4.457]
[1753445598164,4.97282211,3729.4,3729.3,4.455]
[1753445598384,2.68190703,3728.7,3727.9,0.4996]
[1753445598625,2.2646,3729.4,3728.0,4.455]
[1753445598626,0.29501634,3728.6,3728.0,4.455]
[1753445598797,2.681986,3728.6,3728.0,4.455]
[1753445598994,2.68190276,3728.7,3728.0,4.455]
[1753445599218,2.68212,3728.4,3728.0,4.455]
[1753445599718,2.68212,3728.4,3727.8,0.817]
[1753445599919,3.23167142,3729.1,3726.8,0.8245]
[1753445599920,0.55,3728.2,3726.8,0.8245]
[1753445600219,1.7019,3728.3,3727.0,0.4996]
[1753445600425,1.7019,3728.3,3727.2,2.68297905]
[1753445600426,2.68252177,3727.9,3727.2,2.68297905]
[1753445601081,2.68254884,3727.8,3727.1,2.68302765]